Cogmind - Beta 15 @@@ ROGUE MODE // 2025.06.04 @ 01:13:33 Player: Florist Result: Destroyed by X-67 Chaingunner with Heavy Machine Gun Performance ------------- Evolutions (5) 2500 Regions Visited (11) 2200 Robots Destroyed (209) 1045 Value Destroyed (7012) 7012 Prototype IDs (7) 140 Alien Tech Used (0) 0 Bonus (944) 944 TOTAL SCORE: 13841 Bonus ------- High Alert Combat Kills 207 Follower Combat Kills 237 Entered Garrisons 200 Acquired ECA 300 Cogmind --------- Core Integrity 0/1000 Matter 300/300 Energy 100/100 System Corruption 13% Temperature Cool (0) Movement Core (450) Ox8 Location -5/Factory Parts ------- > --- POWER (1) -------- (None) > --- PROPULSION (4) --- (None) > --- UTILITY (8) ------ Improved Coolant Injector Large Storage Unit Improved Sensor Array (fused) Targeting Computer Advanced Targeting Computer > --- WEAPON (4) ------- Ripper > --- INVENTORY (15) --- Neutrino Core Neutrino Core Flexi-carbon Leg Improved Signal Interpreter Encrypted Comm Array Dimensional Node Initializer Force Rifle Peak State ------------ > --- POWER ------------ Neutrino Core > --- PROPULSION ------- Flexi-carbon Leg Flexi-carbon Leg Flexi-carbon Leg Improved VSS Leg > --- UTILITY ---------- Improved Heat Sink Advanced Heat Sink Advanced Heat Sink Large Storage Unit Targeting Computer Advanced Targeting Computer Hardened Heavy Armor Plating > --- WEAPON ----------- Storm Laser > --- INVENTORY -------- Micro Fission Core Micro Fission Core Flexi-carbon Leg Flexi-carbon Leg Flexi-carbon Leg Improved Coolant Injector Encrypted Comm Array Improved Particle Charger Dimensional Node Initializer Force Rifle Ripper Makeshift Sword [Rating: 83] Favorites ----------- Power Heavy Ion Engine Engine Heavy Ion Engine Power Core Neutrino Core Propulsion Aluminum Leg Treads Light Treads Leg Aluminum Leg Utility Medium Storage Unit Device Improved Heat Sink Storage Medium Storage Unit Processor Targeting Computer Protection Improved Medium Armor Plating Weapon Gatling Laser Energy Gun Gatling Laser Ballistic Gun Assault Rifle Ballistic Cannon Magnetic Acceleration Cannon Impact Weapon Mace Slashing Weapon Ripper Build | -11 -10 -9 -8 -8 -7 -6 -6 -6 -6 -5 -5 ------- Run | Yrd Mat Mat Mat Gar Fac Fac Low Low Zio Pro Fac Slots Evolved 10 | . . 2 2 . 2 2 . . . . 2 Power . | . . . . . . . . . . . . Propulsion 2 | . . 2 . . . . . . . . . Utility 6 | . . . 2 . 1 2 . . . . 1 Weapon 2 | . . . . . 1 . . . . . 1 Parts Attached 148 | 8 8 16 9 15 12 11 9 9 9 2 40 Power 19 | 1 1 3 1 2 1 2 2 1 1 . 4 Engine 11 | 1 1 3 1 1 . 1 1 1 . . 1 Core 8 | . . . . 1 1 1 1 . 1 . 3 Reactor . | . . . . . . . . . . . . Propulsion 43 | 2 3 6 1 5 6 3 2 2 1 1 11 Treads 7 | . . . . 5 . . . 1 . 1 . Leg 36 | 2 3 6 1 . 6 3 2 1 1 . 11 Wheel . | . . . . . . . . . . . . Hover . | . . . . . . . . . . . . Flight . | . . . . . . . . . . . . Utility 49 | 2 4 2 4 3 4 4 3 4 3 1 15 Device 19 | 1 1 . 2 . 3 2 2 . 1 . 7 Storage 3 | 1 1 . . . . . . . . . 1 Processor 10 | . . . . 1 . 2 . 3 1 . 3 Hackware . | . . . . . . . . . . . . Protection 17 | . 2 2 2 2 1 . 1 1 1 1 4 Artifact . | . . . . . . . . . . . . Weapon 37 | 3 . 5 3 5 1 2 2 2 4 . 10 Energy Gun 26 | . . 5 3 5 1 1 2 . . . 9 Energy Cannon . | . . . . . . . . . . . . Ballistic Gun 4 | 3 . . . . . . . 1 . . . Ballistic Cannon 1 | . . . . . . . . . . . 1 Launcher . | . . . . . . . . . . . . Special Weapon . | . . . . . . . . . . . . Impact Weapon 1 | . . . . . . 1 . . . . . Slashing Weapon 5 | . . . . . . . . 1 4 . . Piercing Weapon . | . . . . . . . . . . . . Special Melee Weapon . | . . . . . . . . . . . . Unidentified Prototypes 7 | . . 3 2 . . . . . . . 2 Parts Lost 72 | . 2 7 4 10 . . 10 11 . . 28 Power 10 | . 1 2 . 2 . . 1 1 . . 3 Propulsion 23 | . . 4 3 3 . . 1 5 . . 7 Utility 25 | . 1 . 1 3 . . 6 2 . . 12 Weapon 14 | . . 1 . 2 . . 2 3 . . 6 Highest Loss Streak 9 | . 1 1 3 4 . . 8 9 . . 9 To Critical Strikes 2 | . . . 1 . . . . 1 . . . Average Backups 7 | 1 6 9 9 8 9 9 9 5 3 2 8 Power . | . 1 . . . . . . . . . 1 Propulsion . | . 1 . . . . 2 1 1 . . 1 Utility 4 | . 3 7 6 6 7 5 3 2 1 . 1 Weapon 2 | . 1 1 2 1 1 1 3 1 1 1 2 Tool/Special . | . . . . . . . . . . . . Unused Backups 16 | . . 2 5 1 1 . 1 . 1 . 5 Power 4 | . . 1 . . . . . . . . 3 Propulsion . | . . . . . . . . . . . . Utility 7 | . . 1 2 . 1 . 1 . 1 . 1 Weapon 4 | . . . 3 1 . . . . . . . Tool/Special 1 | . . . . . . . . . . . 1 Average Slot Usage (%) 84 | . 89 95 86 72 96 99 94 28 73 98 79 Engine 4 | . 13 10 9 5 . 1 4 . . . 1 Core 2 | . . . . . 7 4 . . 4 6 3 Treads 2 | . . . . 11 7 . . 1 . 4 . Leg 22 | . 28 40 23 8 19 26 25 5 14 20 22 Device 9 | . 2 . 17 7 12 20 17 . . 6 11 Storage 6 | . 14 11 9 9 7 6 5 . . . 4 Processor 8 | . . . . 3 7 12 12 10 24 26 12 Protection 7 | . 2 11 8 9 9 6 4 2 9 13 5 Energy Gun 12 | . . 17 17 17 22 19 19 1 . . 10 Ballistic Gun 2 | . 28 4 . . . . . 2 1 . . Slashing Weapon 2 | . . . . . . . . 2 15 20 2 Peak Build Rating 83 | 7 8 16 24 25 43 53 55 38 59 62 83 Average Rating 36 | 6 6 13 22 20 37 49 51 15 44 60 69 On Entrance 30 | . 7 8 16 24 25 43 53 38 25 59 62 Naked Turns 18 | . . . . . . . . 18 . . . Heaviest Build 77 | 15 22 29 31 34 41 47 47 29 36 36 77 Greatest Support 80 | 20 20 40 40 80 80 68 68 66 60 60 80 Greatest Overweight (x) 7 | . 1 1 3 7 1 . . 1 1 . 2 Average Overweight (x) . | . . . . . . . . . . . . Largest Inventory Capacity 15 | 8 10 10 10 10 10 10 10 5 5 5 15 Average Capacity 9 | 7 9 10 10 10 10 10 9 5 5 5 14 Most Carried 15 | 3 10 10 10 10 10 10 10 5 5 5 15 Average Carried 8 | 1 6 9 9 8 9 9 9 4 4 4 10 Final Capacity 15 | 8 10 10 10 10 10 10 5 5 5 5 15 Final Carried 10 | 3 10 10 10 10 10 10 5 5 5 5 7 Class Distribution -------------------- 38% | Scavenger-Mutant 15% | Mutant 12% | Scavenger-Gunner 11% | Scavenger-Gladiator 10% | Scavenger-Skirmisher 5% | Skirmisher 3% | Scavenger-Tank Dominant Class ---------------- Mutant | -10/Materials Scavenger-Mutant | -9/Materials Scavenger-Mutant | -8/Materials Scavenger-Mutant | -8/Garrison Scavenger-Skirmisher | -7/Factory Skirmisher | -6/Factory Skirmisher | -6/Lower Caves Mutant | -6/Lower Caves Scavenger-Gladiator | -6/Zion Scavenger-Gladiator | -5/Proximity Caves Scavenger-Gunner | -5/Factory Resources | -11 -10 -9 -8 -8 -7 -6 -6 -6 -6 -5 -5 ----------- Run | Yrd Mat Mat Mat Gar Fac Fac Low Low Zio Pro Fac Matter Collected 2963 | 286 598 404 153 161 245 40 221 90 85 65 615 Remotely . | . . . . . . . . . . . . Salvage Created 8991 | 125 808 1445 1096 490 407 299 731 86 65 187 3252 Parts 431 | 17 50 86 52 18 22 5 33 5 2 9 132 Haulers Intercepted 14 | . 2 4 4 . 1 . . . . . 3 Recyclers Shooed 2 | . 1 . 1 . . . . . . . . Parts Field Recycled . | . . . . . . . . . . . . Retrieved Matter . | . . . . . . . . . . . . Parts Self-Destructed 67 | . . . . . . . 35 8 2 22 . Prevented . | . . . . . . . . . . . . Kills | -11 -10 -9 -8 -8 -7 -6 -6 -6 -6 -5 -5 ------- Run | Yrd Mat Mat Mat Gar Fac Fac Low Low Zio Pro Fac Combat Hostiles Destroyed 148 | . 10 30 15 8 7 6 24 2 . 5 41 Melee 17 | . . . . . . . . 1 . 5 11 Guns 124 | . 10 28 15 8 7 5 23 1 . . 27 AOE 2 | . . 1 . . . . . . . . 1 Classes Destroyed 17 | 1 6 4 2 2 1 . . . . . 1 Worker 9 | . . 3 2 . . . . . . . 4 Builder 7 | . 2 . 1 . . . . . . . 4 Tunneler 10 | 8 . . . . 1 . . . . . 1 Hauler 14 | . 2 4 4 . 1 . . . . . 3 Recycler 8 | . 2 1 1 . . . . . . . 4 Mechanic 3 | . 1 1 1 . . . . . . . . Operator 1 | . . . 1 . . . . . . . . Watcher 9 | . 2 2 2 . 2 . . . . . 1 Swarmer 48 | . . 14 3 . . . 18 1 . 3 9 Cutter 2 | . . . . 2 . . . . . . . Grunt 52 | . 10 8 7 . 6 5 4 . . . 12 Brawler 4 | . . . . 2 . 1 . . . . 1 Duelist 2 | . . 1 . . . . 1 . . . . Sentry 20 | . . 7 4 4 . . 1 . . 1 3 Specialist 1 | . . . . . . . . . . . 1 Hunter 9 | . . . 1 . . . . 1 . . 7 Programmer 10 | . . . . . 1 . . . . 1 8 Best Kill Streak 9 | 3 5 5 4 2 2 3 5 1 . 3 9 Combat Bots Only 5 | . 3 5 3 2 2 3 5 1 . 3 5 Max Kills in Single Turn 2 | 1 1 1 1 2 1 1 2 1 . 1 2 Gunslinging 1 | . . . . 1 . . 1 . . . . Exploded 1 | . . 1 . . . . . . . . 1 Melee 1 | . . . . . . . . 1 . 1 1 Uniques/NPCs Destroyed . | . . . . . . . . . . . . Combat | -11 -10 -9 -8 -8 -7 -6 -6 -6 -6 -5 -5 -------- Run | Yrd Mat Mat Mat Gar Fac Fac Low Low Zio Pro Fac Hostile Shots Fired 974 | . 58 151 78 75 39 11 107 110 . 11 334 Missed 246 | . 17 47 17 14 9 4 18 35 . 6 79 Hits 728 | . 41 104 61 61 30 7 89 75 . 5 255 Melee 12 | . . . . 8 . . 3 1 . . . Projectile 716 | . 41 104 61 53 30 7 86 74 . 5 255 AOE 3 | . . . . 3 . . . . . . . Critical Strikes 27 | . . 1 4 2 . 1 1 3 . 2 13 Damage Taken 12846 | . 573 1209 859 1258 706 132 1446 1312 . 125 5226 Core 2808 | . 125 264 83 380 257 . 97 578 . 14 1010 Absorbed by Shields . | . . . . . . . . . . . . Ignored by Resistances 91 | . . . . . . . 6 6 . 4 75 Regen/Repaired (Parts) 28 | . . . . . . . . . 28 . . Core Remaining (%) 46 | 100 50 34 . 15 63 . . . . 18 . Volleys Fired 456 | 24 65 105 77 32 24 10 29 4 . . 86 Largest 4 | 2 2 2 2 2 3 3 3 3 . . 4 Hottest 299 | 40 40 130 130 122 240 240 250 250 . . 299 Shots Fired 920 | 48 130 202 153 63 50 29 85 6 . . 154 Gun 918 | 48 130 202 153 63 50 29 85 6 . . 152 Cannon 2 | . . . . . . . . . . . 2 Launcher . | . . . . . . . . . . . . Special . | . . . . . . . . . . . . Kinetic 226 | 48 130 46 . . . . . . . . 2 Thermal 665 | . . 156 153 63 50 29 85 6 . . 123 Explosive . | . . . . . . . . . . . . Electromagnetic 29 | . . . . . . . . . . . 29 Robot Hit Streak 30 | 5 10 14 8 10 8 30 21 3 . . 21 Robot Miss Streak 12 | 4 7 5 4 2 3 1 6 5 . . 12 Penetration Max . | . . . . . . . . . . . . Secondary Targets 18 | . 1 5 1 2 1 . 8 . . . . Max Gunslinging Chain 1 | . 1 1 1 1 1 . 1 . . . . Shots Hit Robots 657 | 28 85 111 99 33 42 26 61 6 1 9 156 Core Hits 380 | 8 34 50 41 9 32 26 55 2 1 5 117 Critical Kills 1 | 1 . . . . . . . . . . . Critical Parts Destroyed 1 | . . . . . . . . . . . 1 Critical Strikes 37 | 1 . 8 6 6 . . 5 . . 2 9 Burn 29 | . . 8 6 6 . . 5 . . . 4 Destroy 2 | 1 . . . . . . . . . . 1 Corrupt 1 | . . . . . . . . . . . 1 Sever 5 | . . . . . . . . . . 2 3 Melee Attacks 74 | . . . . . . 1 . 3 2 15 53 Impact 2 | . . . . . . 1 . . 1 . . Slashing 72 | . . . . . . . . 3 1 15 53 Piercing . | . . . . . . . . . . . . Sneak Attacks 3 | . . . . . . . . . . . 3 Combat Hostiles . | . . . . . . . . . . . . Follow-up Attacks 3 | . . . . . . . . . . 1 2 Damage Inflicted 15907 | 382 1077 1944 1915 700 786 688 1299 163 64 350 6539 Guns 13806 | 382 1077 1821 1915 700 786 688 1299 54 . . 5084 Cannons . | . . . . . . . . . . . . Explosions 216 | . . 123 . . . . . . . . 93 Melee 1857 | . . . . . . . . 108 64 350 1335 Ramming 28 | . . . . . . . . 1 . . 27 Kinetic 1720 | 382 1077 261 . . . . . . . . . Thermal 12000 | . . 1560 1915 700 786 688 1299 54 . . 4998 Explosive 123 | . . 123 . . . . . . . . . Electromagnetic 179 | . . . . . . . . . . . 179 Impact . | . . . . . . . . . . . . Slashing 1857 | . . . . . . . . 108 64 350 1335 Piercing . | . . . . . . . . . . . . Highest Corruption 13 | . . . 1 3 1 . . . . 1 13 Average Corruption 2 | . . . 1 2 1 . . . . 1 6 Corruption Purged . | . . . . . . . . . . . . Corruption Blocked . | . . . . . . . . . . . . Effects 71 | . . . 7 18 2 . . . . 3 41 Message Errors 19 | . . . 1 3 . . . . . 1 14 Matter Fused 16 | . . . 4 4 . . . . . . 8 Heat Flow Errors 7 | . . . . 3 1 . . . . . 3 Energy Discharges 5 | . . . . 4 1 . . . . . . Parts Fused 1 | . . . . . . . . . . . 1 Data Loss (minor) 14 | . . . . 3 . . . . . 2 9 Data Loss (major) 2 | . . . 1 . . . . . . . 1 Misfires 1 | . . . . . . . . . . . 1 Alerts 2 | . . . . . . . . . . . 2 Weapon Failures 4 | . . . 1 1 . . . . . . 2 Overload Shots . | . . . . . . . . . . . . Overflow Damage 51 | . . . . . . . . . . 28 23 Projectiles . | . . . . . . . . . . . . Explosions . | . . . . . . . . . . . . Melee 51 | . . . . . . . . . . 28 23 Knockbacks . | . . . . . . . . . . . . Impact . | . . . . . . . . . . . . Kinetic . | . . . . . . . . . . . . Secondary . | . . . . . . . . . . . . Self-Inflicted Damage 114 | . . 114 . . . . . . . . . Shots 1 | . . 1 . . . . . . . . . Rammed 4 | . . . . . . . . 1 . . 3 Targets Rammed 15 | . . . . . . . . 1 . . 14 Kicked 11 | . . . . . . . . . . . 11 Crushed . | . . . . . . . . . . . . Highest Temperature 575 | . 57 553 342 192 575 250 535 134 . 8 209 Average Temperature 124 | . 29 145 58 44 188 146 215 88 . 8 88 Received Heat Transfer 2448 | . 318 351 369 243 243 81 45 261 . 27 510 Effects 43 | . . 11 . . 23 2 7 . . . . Shutdowns 9 | . . 2 . . 5 . 2 . . . . Energy Bleed 9 | . . 4 . . 2 . 3 . . . . Interference 8 | . . 3 . . 3 2 . . . . . Matter Decay 5 | . . 2 . . 2 . 1 . . . . Short Circuit 2 | . . . . . 1 . 1 . . . . Damage (minor) 4 | . . . . . 4 . . . . . . Damage (major) 4 | . . . . . 4 . . . . . . Damage (core) 2 | . . . . . 2 . . . . . . Siege Activations . | . . . . . . . . . . . . Martial Activations . | . . . . . . . . . . . . Shielding Activations . | . . . . . . . . . . . . Robots Disrupted 1 | . . . . . . . . . . . 1 Combat Hostiles . | . . . . . . . . . . . . Robots Corrupted . | . . . . . . . . . . . . Combat Hostiles . | . . . . . . . . . . . . Parts Fried . | . . . . . . . . . . . . Impact Corruptions . | . . . . . . . . . . . . Robots Melted 7 | . . 1 . 1 . 1 1 . . . 3 Combat Hostiles 5 | . . 1 . . . 1 1 . . . 2 Parts Melted 73 | . . 6 6 4 3 3 10 . . . 41 Heat Transferred 24544 | . . 3959 4218 1739 1775 1575 3550 150 . . 7578 Parts Sabotaged . | . . . . . . . . . . . . Parts Stolen . | . . . . . . . . . . . . Parts Stripped . | . . . . . . . . . . . . Power Chain Reactions 1 | . . . . . . . . . . . 1 Alert | -11 -10 -9 -8 -8 -7 -6 -6 -6 -6 -5 -5 ------- Run | Yrd Mat Mat Mat Gar Fac Fac Low Low Zio Pro Fac Maximum Alert Level 2 | . . 2 1 2 1 . . . . . 2 Low Security (%) 72 | 100 100 69 90 36 86 100 . . . . 53 Level 1 20 | . . 27 9 53 13 . . . . . 21 Level 2 7 | . . 3 . 9 . . . . . . 25 Level 3 . | . . . . . . . . . . . . Level 4 . | . . . . . . . . . . . . Level 5 . | . . . . . . . . . . . . High Security . | . . . . . . . . . . . . Max Security . | . . . . . . . . . . . . Peak Influence 668 | 10 102 409 285 420 220 190 . . . . 668 Initial 220 | . 3 10 163 . 220 . . . . . 51 Average 138 | 1 27 167 44 220 86 76 . . . . 245 Influence Increases 5410 | 40 355 936 556 520 216 230 595 220 5 264 1473 Destroy 0b10 Robot/C 3100 | . 200 600 300 160 140 120 480 40 . 200 860 Destroy 0b10 Robot/NC 320 | 40 45 55 60 10 20 . . . 5 . 85 Destroy Leader 584 | . 58 162 82 10 26 20 40 . . 30 156 Allied During Kill 27 | . . . . . . . . . . 19 8 Trap Triggered on 0b10 40 | . . . . 40 . . . . . . . Successful Hack 44 | . 5 . 19 . . . . . . . 20 Disable Machine 195 | . . 15 30 60 . 15 . . . . 75 Anti-Garrison Action 200 | . . . . 200 . . . . . . . Destroy Structure 150 | . 2 29 5 10 . . . . . . 104 Partial Spotted 30 | . . 15 . . . . . . . . 15 Lose Combat Pursuer 720 | . 45 60 60 30 30 75 75 180 . 15 150 Influence Decreases 4826 | 35 335 572 945 100 636 210 486 315 39 181 972 Entered New Map 542 | . 2 15 226 . 200 . 8 25 34 . 32 Time Decay 3290 | 35 323 487 491 . 379 210 378 180 5 162 640 Lost Part 699 | . 10 70 29 100 . . 100 110 . . 280 Lost Ally 39 | . . . . . . . . . . 19 20 Purge Threat 256 | . . . 199 . 57 . . . . . . Squads Dispatched 26 | . 2 4 2 . 3 2 . 1 . . 12 Investigation 9 | . 1 2 1 . . 1 . . . . 4 Extermination 7 | . . . . . 2 1 . . . . 4 Reinforcement 9 | . 1 2 1 . 1 . . . . . 4 Assault 1 | . . . . . . . . 1 . . . Garrison . | . . . . . . . . . . . . Intercept . | . . . . . . . . . . . . Searches Triggered . | . . . . . . . . . . . . Construction Impeded . | . . . . . . . . . . . . Haulers Reinforced 2 | . . . . . 1 . . . . . 1 Active Scanning Responses . | . . . . . . . . . . . . Cargo Convoy Interrupts . | . . . . . . . . . . . . Stealth | -11 -10 -9 -8 -8 -7 -6 -6 -6 -6 -5 -5 --------- Run | Yrd Mat Mat Mat Gar Fac Fac Low Low Zio Pro Fac Distress Signals 3 | . 1 . 1 . . . . . . . 1 Communications Jammed . | . . . . . . . . . . . . Distress Signals . | . . . . . . . . . . . . Times Spotted 261 | . 25 45 31 19 13 11 26 16 . 9 66 Peak Tracking Total 9 | . 4 6 3 4 4 7 7 9 . 5 8 Tactical Retreats 24 | . 2 3 1 1 1 2 2 5 . 1 6 Traps | -11 -10 -9 -8 -8 -7 -6 -6 -6 -6 -5 -5 ------- Run | Yrd Mat Mat Mat Gar Fac Fac Low Low Zio Pro Fac Traps Triggered 8 | . 1 1 . 6 . . . . . . . Indirectly . | . . . . . . . . . . . . Trap Hack Attempts . | . . . . . . . . . . . . Triggered . | . . . . . . . . . . . . Disarmed . | . . . . . . . . . . . . Reprogrammed . | . . . . . . . . . . . . Reused 4 | . . . . 4 . . . . . . . Traps Extracted . | . . . . . . . . . . . . Installed 7 | . . . . 7 . . . . . . . Triggered 4 | . . . . 4 . . . . . . . Most Traps Carried 2 | . . . . 2 . . . . . . . Machines | -11 -10 -9 -8 -8 -7 -6 -6 -6 -6 -5 -5 ---------- Run | Yrd Mat Mat Mat Gar Fac Fac Low Low Zio Pro Fac Machines Disabled 16 | . . 1 2 6 . 1 . . . 1 5 Max in Single Turn 1 | . . 1 1 1 . 1 . . . 1 1 Garrison Access 1 | . . . . . . . . . . . 1 Garrison Relay 2 | . . . . 2 . . . . . . . Machines Repaired . | . . . . . . . . . . . . Machines Dismantled . | . . . . . . . . . . . . Machines Sabotaged . | . . . . . . . . . . . . Overloaded Fab Kills . | . . . . . . . . . . . . Hacking | -11 -10 -9 -8 -8 -7 -6 -6 -6 -6 -5 -5 --------- Run | Yrd Mat Mat Mat Gar Fac Fac Low Low Zio Pro Fac Machines Accessed 25 | . 2 2 8 . 4 1 . . . 1 7 Terminals 13 | . 2 . 6 . 2 . . . . . 3 Fabricators 5 | . . . . . 2 1 . . . . 2 Repair Stations . | . . . . . . . . . . . . Recycling Units 4 | . . 2 1 . . . . . . . 1 Scanalyzers . | . . . . . . . . . . . . Garrison Access 2 | . . . 1 . . . . . . . 1 Total Hacks 65 | . 3 4 25 . 8 2 . . . 1 22 Successful 23 | . 2 1 10 . 2 . . . . 1 7 Failed 42 | . 1 3 15 . 6 2 . . . . 15 Catastrophic 11 | . . 1 4 . 3 . . . . . 3 Database Lockouts . | . . . . . . . . . . . . Manual 34 | . 3 . 14 . 7 . . . . . 10 Terminals 41 | . 3 . 22 . 3 . . . . . 13 Fabricators 12 | . . . . . 5 2 . . . . 5 Repair Stations . | . . . . . . . . . . . . Recycling Units 7 | . . 4 1 . . . . . . . 2 Scanalyzers . | . . . . . . . . . . . . Garrison Access 4 | . . . 2 . . . . . . . 2 Terminal Hacks 12 | . . . 6 . 1 . . . . 1 4 Record 3 | . . . . . . . . . . 1 2 Robot Analysis 1 | . . . 1 . . . . . . . . Level Access Points 1 | . . . . . . . . . . . 1 Alert Level 2 | . . . 1 . . . . . . . 1 Unreport Threat 4 | . . . 3 . 1 . . . . . . Locate Traps 1 | . . . 1 . . . . . . . . Fabricator Hacks 2 | . . . . . 1 . . . . . 1 Network Status 2 | . . . . . 1 . . . . . 1 Repair Station Hacks . | . . . . . . . . . . . . Recycling Unit Hacks 2 | . . 1 1 . . . . . . . . Retrieve Components 2 | . . 1 1 . . . . . . . . Scanalyzer . | . . . . . . . . . . . . Garrison Access Hacks 2 | . . . 1 . . . . . . . 1 Unlock Access 1 | . . . 1 . . . . . . . . Seal Access 1 | . . . . . . . . . . . 1 Unauthorized Hacks 5 | . 2 . 2 . . . . . . . 1 Terminals 4 | . 2 . 2 . . . . . . . . Assimilate 2 | . . . 2 . . . . . . . . Botnet 2 | . 2 . . . . . . . . . . Fabricators 1 | . . . . . . . . . . . 1 Fabnet 1 | . . . . . . . . . . . 1 Repair Stations . | . . . . . . . . . . . . Recycling Units . | . . . . . . . . . . . . Scanalyzers . | . . . . . . . . . . . . Garrison Access . | . . . . . . . . . . . . Data Cores Recovered . | . . . . . . . . . . . . Used . | . . . . . . . . . . . . Hacking Detections 20 | . 2 1 5 . 4 1 . . . . 7 Full Trace Events 7 | . . 1 1 . . 1 . . . . 4 Feedback Events 1 | . . . 1 . . . . . . . . Corruption 1 | . . . 1 . . . . . . . . Feedback Blocked . | . . . . . . . . . . . . Robot Schematics Acquired . | . . . . . . . . . . . . Robots Built . | . . . . . . . . . . . . Authchips . | . . . . . . . . . . . . Time . | . . . . . . . . . . . . Total Robot Build Rating . | . . . . . . . . . . . . Part Schematics Acquired . | . . . . . . . . . . . . Parts Built . | . . . . . . . . . . . . Authchips . | . . . . . . . . . . . . Time . | . . . . . . . . . . . . Total Part Build Rating . | . . . . . . . . . . . . Parts Repaired . | . . . . . . . . . . . . Time . | . . . . . . . . . . . . Parts Recycled . | . . . . . . . . . . . . Recycled Matter . | . . . . . . . . . . . . Retrieved Matter . | . . . . . . . . . . . . Retrieved Components 18 | . . 9 9 . . . . . . . . Parts Scanalyzed . | . . . . . . . . . . . . Part Schematics Acquired . | . . . . . . . . . . . . Parts Damaged . | . . . . . . . . . . . . Bothacking | -11 -10 -9 -8 -8 -7 -6 -6 -6 -6 -5 -5 ------------ Run | Yrd Mat Mat Mat Gar Fac Fac Low Low Zio Pro Fac Used RIF Installer . | . . . . . . . . . . . . Robots Hacked . | . . . . . . . . . . . . Non-combat . | . . . . . . . . . . . . Combat . | . . . . . . . . . . . . Robot Hacks Applied . | . . . . . . . . . . . . Relay Couplers Released 10 | . . . . 10 . . . . . . . Machine Destruction 10 | . . . . 10 . . . . . . . Fabnet Peak Effective % . | . . . . . . . . . . . . Robots Rewired 1 | . . . . . . . 1 . . . . Allies Hacked . | . . . . . . . . . . . . Hacks Repelled . | . . . . . . . . . . . . Allies | -11 -10 -9 -8 -8 -7 -6 -6 -6 -6 -5 -5 -------- Run | Yrd Mat Mat Mat Gar Fac Fac Low Low Zio Pro Fac Total Allies 4 | . . . 1 . . . 1 . 2 . . Largest Group 2 | . . . 1 . . . 1 . 2 2 1 Highest-Rated Group 64 | . . . 10 . . . 32 . 64 64 39 Highest-Rated Ally 39 | . . . 10 . . . 32 . 39 39 39 Initial Warlord ECA Mod 13 | . . . . . 3 2 2 2 2 1 1 Total Orders . | . . . . . . . . . . . . Ally Attacks 56 | . . . . . . . 1 . . 30 25 Total Damage 1012 | . . . . . . . 21 . . 373 618 Kills 7 | . . . . . . . . . . 5 2 Allies Corrupted . | . . . . . . . . . . . . Allies Melted . | . . . . . . . . . . . . Intel | -11 -10 -9 -8 -8 -7 -6 -6 -6 -6 -5 -5 ------- Run | Yrd Mat Mat Mat Gar Fac Fac Low Low Zio Pro Fac Active Infowar (turns) 8004 | 138 182 . 1874 646 825 582 886 273 1013 693 892 Optics 1581 | . . . . . . . . . 778 693 110 Sensors 2465 | . . . . . 825 582 886 . . . 172 Seismic 2840 | 138 182 . 1874 646 . . . . . . . Machine Analysis 2699 | . . . . . . . . 273 1013 693 720 Robot Analysis Total 1 | . . . 1 . . . . . . . . Derelict Logs Recovered 3 | . . . . . . . 1 1 1 . . Drone Launches . | . . . . . . . . . . . . Drone Recoveries . | . . . . . . . . . . . . Exploration | -11 -10 -9 -8 -8 -7 -6 -6 -6 -6 -5 -5 ------------- Run | Yrd Mat Mat Mat Gar Fac Fac Low Low Zio Pro Fac Turns Passed 13730 | 275 1065 1494 1874 1612 1254 599 1057 379 1013 693 2415 Spaces Moved 7927 | 158 629 837 854 783 792 392 660 363 797 484 1178 Core 204 | 5 . . . 24 . . . 175 . . . Treads 609 | . . . . 411 158 . . 40 . . . Legs 7114 | 153 629 837 854 348 634 392 660 148 797 484 1178 Wheels . | . . . . . . . . . . . . Hover . | . . . . . . . . . . . . Flight . | . . . . . . . . . . . . Fastest Speed 50 | 50 120 120 120 160 122 125 122 50 120 123 105 Average Speed 134 | 117 125 120 166 179 141 125 123 92 121 123 131 Slowest Speed 400 | 120 190 190 330 400 190 125 125 190 190 123 265 Overloaded Moves . | . . . . . . . . . . . . Propulsion Burnouts . | . . . . . . . . . . . . Robots Hopped . | . . . . . . . . . . . . Potential Cave-ins . | . . . . . . . . . . . . Cave-ins Triggered . | . . . . . . . . . . . . Exploration Rate (%) 46 | 5 88 65 49 45 20 9 59 55 81 60 27 Regions Visited 11 Branch Regions 4 Pre-discovered Areas 3 | . . . . . . . 1 . 2 . . Known Exits Taken 4 | . . . 1 . 1 1 . . . 1 . Unknown Exits Taken 6 | 1 1 1 . . . . 1 1 1 . . Scrap Searched 8 | . . . . . . . 3 1 1 3 . Spaces Dug 10 | . . . . . . . . . . . 10 Terrain Destroyed 46 | . . 29 . 4 . . . . . . 13 Melee 9 | . . . . . . . . . . . 9 Projectile 5 | . . . . 4 . . . . . . 1 AOE 32 | . . 29 . . . . . . . . 3 Terrain Rammed . | . . . . . . . . . . . . Walls Destroyed . | . . . . . . . . . . . . Machines Disabled . | . . . . . . . . . . . . Actions | -11 -10 -9 -8 -8 -7 -6 -6 -6 -6 -5 -5 --------- Run | Yrd Mat Mat Mat Gar Fac Fac Low Low Zio Pro Fac Total 9882 | 195 773 1123 1159 930 873 472 826 393 834 565 1739 Wait 1044 | 4 57 148 190 51 32 49 108 12 20 64 309 Move 7917 | 157 628 836 854 782 791 391 659 362 796 483 1178 Hop . | . . . . . . . . . . . . Pick Up 67 | 2 9 7 12 12 3 4 6 1 1 1 9 Fast Attach 89 | 7 2 9 4 11 5 . 3 8 6 2 32 Attach 50 | . 2 5 5 5 3 3 7 1 4 . 15 Detach 13 | . 1 . . . 1 . . . . . 11 Swap 41 | 1 4 4 3 . 4 8 2 . 2 1 12 Drop 94 | . 5 9 14 10 10 6 9 1 4 3 23 Fire 456 | 24 65 105 77 32 24 10 29 4 . . 86 Melee 66 | . . . . . . 1 . 3 1 11 50 Ram 3 | . . . . . . . . . . . 3 Kick 11 | . . . . . . . . . . . 11 Crush 1 | . . . . . . . . 1 . . . Escape Stasis 20 | . . . . 20 . . . . . . . Rewire 3 | . . . . . . . 3 . . . . Trap 7 | . . . . 7 . . . . . . . Miscellaneous . | . . . . . . . . . . . . Route ------- -11/Scrapyard -10/Materials (discovered 6 exits: *Mat x3 / [*Min x2] / [*Sub]) -9/Materials (discovered 3 exits: *Mat / [*Min x2]) -8/Materials (discovered 2 exits: *Fac / Gar) -8/Garrison -7/Factory (discovered 4 exits: *Fac / *Sto x2 / *Low) -6/Factory (discovered 2 exits: *Fac / *Low) -6/Lower Caves -6/Lower Caves -6/Zion -5/Proximity Caves -5/Factory (discovered 4 exits: *Fac x4) History --------- Turn | Location | Event 22 | -11/Scrapyard | Discovered new exit (range 16) 276 | -11/Scrapyard | Entered Materials 315 | -10/Materials | Build established: Mutant 392 | -10/Materials | Discovered new exit (range 8) 546 | -10/Materials | Discovered new exit (range 12) 870 | -10/Materials | Discovered new exit (range 15) 1127 | -10/Materials | Discovered new exit (range 7) 1139 | -10/Materials | Discovered new exit (range 11) 1324 | -10/Materials | Discovered new exit (range 10) 1341 | -10/Materials | Entered another Materials area 1341 | -9/Materials | Evolved 2 slots: Propulsion x2 1351 | -9/Materials | Discovered new exit (range 16) 1618 | -9/Materials | Build established: Scavenger-Mutant 2138 | -9/Materials | Discovered new exit (range 15) 2387 | -9/Materials | Core integrity fell below 50% 2398 | -9/Materials | Discovered new exit (range 15) 2835 | -9/Materials | Entered another Materials area 2835 | -8/Materials | Evolved 2 slots: Utility x2 3174 | -8/Materials | Discovered new exit (range 12) 3460 | -8/Materials | Lost 3 parts (2n1u) 4709 | -8/Materials | Identified exit to Garrison 4709 | -8/Materials | Entered Garrison 4981 | -8/Garrison | Triggered checkpoint 5014 | -8/Garrison | Garrison Relay disabled 5028 | -8/Garrison | Garrison Relay disabled 5211 | -8/Garrison | Triggered checkpoint 5223 | -8/Garrison | Triggered checkpoint 5436 | -8/Garrison | Lost 3 parts (1p1n1u) 5515 | -8/Garrison | Core integrity fell below 50% 5545 | -8/Garrison | Lost 4 parts (1n1u2w) 5645 | -8/Garrison | Build established: Mutant 5748 | -8/Garrison | Discovered new exit (range 8) 5760 | -8/Garrison | Identified exit to Factory 5951 | -8/Garrison | Build established: Scavenger-Mutant 5991 | -8/Garrison | Core integrity fell below 20% 6055 | -8/Garrison | Triggered checkpoint 6321 | -8/Garrison | Entered Factory 6321 | -7/Factory | Evolved 2 slots: Utility x1, Weapon x1 6410 | -7/Factory | Discovered new exit (range 5) 6416 | -7/Factory | Identified exit to Storage 6655 | -7/Factory | Build established: Scavenger-Tank 6704 | -7/Factory | Discovered exit to Storage (range 10) 7042 | -7/Factory | Build established: Scavenger-Skirmisher 7339 | -7/Factory | Discovered new exit (range 12) 7364 | -7/Factory | Identified exit to Lower Caves 7551 | -7/Factory | Discovered new exit (range 5) 7555 | -7/Factory | Identified exit to Factory 7575 | -7/Factory | Entered another Factory area 7575 | -6/Factory | Evolved 2 slots: Utility x2 7889 | -6/Factory | Discovered new exit (range 13) 7913 | -6/Factory | Discovered new exit (range 8) 7922 | -6/Factory | Identified exit to Factory 7982 | -6/Factory | Identified exit to Lower Caves 8174 | -6/Factory | Entered Lower Caves 8204 | -6/Lower Caves | Build established: Skirmisher 8222 | -6/Lower Caves | Met a Warlord Commander 8223 | -6/Lower Caves | Learned location of Warlord (-5) 8224 | -6/Lower Caves | Warlord Commander delivered Encrypted Comm Array 8232 | -6/Lower Caves | Found Encrypted Comm Array 8387 | -6/Lower Caves | Learned Factory trap positions 8936 | -6/Lower Caves | Build established: Scavenger-Skirmisher 9028 | -6/Lower Caves | Attracted the attention of an 0b10 outpost 9091 | -6/Lower Caves | Lost 8 parts (1p1n4u2w) 9114 | -6/Lower Caves | Discovered new exit (range 16) 9231 | -6/Lower Caves | Entered another Lower Caves area 9250 | -6/Lower Caves | Attracted the attention of an 0b10 outpost 9287 | -6/Lower Caves | Learned Factory interactive machine intel 9304 | -6/Lower Caves | Lost 9 parts (1p4n1u3w) 9406 | -6/Lower Caves | Core integrity fell below 50% 9598 | -6/Lower Caves | Discovered new exit (range 11) 9610 | -6/Lower Caves | Entered Zion 9684 | -6/Zion | Discovered new exit (range 12) 9688 | -6/Zion | Given A8's code to call for help 9736 | -6/Zion | Build established: Scavenger-Mutant 9891 | -6/Zion | Learned location of Armory (-3) 10111 | -6/Zion | Learned Factory emergency access door positions 10148 | -6/Zion | Build established: Scavenger-Gladiator 10174 | -6/Zion | Gained Derelict followers 10496 | -6/Zion | Found Prototype Energy Gun 10623 | -6/Zion | Entered Proximity Caves 10623 | -5/Proximity Caves | Accompanied by 2 allies 10712 | -5/Proximity Caves | Attracted the attention of an 0b10 checkpoint 11136 | -5/Proximity Caves | Found Alien Artifact 11187 | -5/Proximity Caves | Core integrity fell below 20% 11275 | -5/Proximity Caves | Discovered exit to Factory (range 9) 11316 | -5/Proximity Caves | Entered Factory 11316 | -5/Factory | Accompanied by 1 ally 11316 | -5/Factory | Evolved 2 slots: Utility x1, Weapon x1 11317 | -5/Factory | Loaded intel: 78 trap records 11319 | -5/Factory | Loaded intel: 56 interactive machine locations 11349 | -5/Factory | Identified Storm Laser 11494 | -5/Factory | Lost 4 parts (1p2u1w) 11763 | -5/Factory | Build established: Scavenger-Mutant 11861 | -5/Factory | Discovered new exit (range 7) 11962 | -5/Factory | Identified exit to Factory 12067 | -5/Factory | Lost 3 parts (1p1u1w) 12195 | -5/Factory | Build established: Scavenger-Gunner 13143 | -5/Factory | Lost 3 parts (1p2u) 13701 | -5/Factory | System corruption reached 10% 13707 | -5/Factory | Core integrity fell below 50% 13719 | -5/Factory | Core integrity fell below 20% 13731 | -5/Factory | Destroyed by X-67 Chaingunner with Heavy Machine Gun Last Messages --------------- 13700_ Knocked back. 13704_ Mak. Sword destroyed. 13704_ Kicked X-67 Chaingunner. 13707_ DSF Access disabled. 13707_ Kicked X-67 Chaingunner out of the way. 13708_ Kicked X-67 Chaingunner. 13708_ Imp. Target Analyzer destroyed. 13709_ Penetrated by Slug. 13709_ Imp. VSS Leg destroyed. 13709_ Knocked back. 13709_ Kicked X-67 Chaingunner. 13712_ =VYK4S1LT7AHJPCG1V0BQYKT 13713_ Kicked X-67 Chaingunner. 13719_ Kicked X-67 Chaingunner out of the way. 13720_ Carbon-fiber Leg destroyed. 13720_ P-70 Sage resets H-71 Marshal, system corruption cleaned. 13721_ Slammed into X-67 Chaingunner. 13725_ Destabilizing: System interference. 13725_ Imp. Coolant Injector temporarily disabled. 13730_ Slammed into X-67 Chaingunner. Map ----- +----------------------------------------------------+ | ?????????????????????????????????????????????????? | | ?????????????????????????????????????????????????? | | ?????????????????????????????????????????????????? | | ?????????????????????????????????????????????????? | | ?????????????????????????????????????????????????? | | ?????????????????????????????????????????????????? | | ??"""????????????????????????????????????????????? | | ??"""????????????????????????????????????????????? | | ??"S?????????????????????????????????????????????? | | ??"""????????????????????????????????????????????? | | ???""????????????????????????????????????????????? | | ????????????????????????????????????? ???????????? | | ????????????????????????????????????? ???????????? | | ????????????????????????????????????? ???????????? | | ???????????????????????""???????????? ???????????? | | ???????????????????????""???????????# #??????????? | | ????????????????????????""??????????# #??????????? | | ???????????????????????? ??????????# #??????????? | | ???????????????????????? ??????????# #??????????? | | ????????????????????????#+#?????????# #??????????? | | ????????????????????????# #?????????# #??????????? | | ???????????????????????## ##???????## ##?????????? | | ???????????????????????# #########[ #####+##### | | ???????????????????????+ [%!" | | ???????????????????????# x #########! %% #???? | | ???????????????????????##@##???????### = #???? | | ????????????????????????#%#??????????# #???? | | ????????????????????????#%#?????????? #???? | | ????????????#########???#%#?????????? #???? | | ########???? ! * !#???#%#?????????? ??? | | # = #??? #####p##????????? ? | | # !#??? "" "" # # #???????? "" """" | | # #??? "" "" # ;[*#????????# "Y """" | | # #??# """ """ # !#*##????????# "" ""?? | | # #??# """ """ + #A#?????????# ? ! ?? | | ?? =???# """ """ # # #?????????# ? ?? | | ?###+###??# # # #?????????# ??? #?? | | ?# #??#######+### # #?????????? ???? ???? | | ?# ######### ###H## #??????????/#??????????? | | ?# " " ????